bitfinex/quotes_BTCUSD_20260310
["timestamp","ask_amount","ask_price","bid_price","bid_amount"]
[1773105529220,0.005,68980.0,68971.0,0.00148]
[1773105529422,0.005,68980.0,68970.0,0.07280963]
[1773105529664,0.005,68980.0,68970.0,0.0003146]
[1773105530229,0.005,68980.0,68970.0,0.07280987]
[1773105530438,0.03,68978.0,68970.0,0.0003146]
[1773105530757,0.005,68977.0,68970.0,0.0003146]
[1773105532779,0.03,68975.0,68970.0,0.0003146]
[1773105532979,0.005,68974.0,68970.0,0.0003146]
[1773105533183,0.14464923,68981.0,68971.0,0.06848947]
[1773105533330,0.07248035,68985.0,68971.0,0.06848947]
[1773105533530,0.07247924,68986.0,68971.0,0.06848947]
[1773105534052,0.07247732,68988.0,68971.0,0.06848947]
[1773105534704,0.005,68987.0,68971.0,0.06848947]
[1773105536296,0.03,68985.0,68973.0,0.06848947]
[1773105536602,0.03,68985.0,68972.0,0.07249318]
[1773105536603,0.03,68985.0,68975.0,0.06848947]
[1773105536736,0.07247847,68987.0,68975.0,0.06848947]
[1773105536935,0.07247444,68990.0,68975.0,0.06848947]
[1773105537135,0.07747427,68991.0,68975.0,0.06848947]
[1773105537380,0.03,68990.0,68975.0,0.06848947]
[1773105538019,0.035,68990.0,68975.0,0.06848947]
[1773105538198,0.005,68989.0,68975.0,0.06848947]
[1773105538454,0.03022001,68992.0,68977.0,0.06848947]
[1773105538680,0.00148,68997.0,68977.0,0.06848947]
[1773105538681,0.07246809,68996.0,68977.0,0.06848947]
[1773105539361,0.03,68998.0,68977.0,0.06848947]
[1773105539538,0.00022001,68999.0,68977.0,0.06848947]
[1773105539753,0.00023,69000.0,68982.0,0.17375156]
[1773105539754,1e-08,69000.0,68982.0,0.17375156]
[1773105540042,1e-08,69000.0,68984.0,0.06848947]
[1773105540246,0.07166182,69002.0,68986.0,0.06848947]
[1773105540449,0.005,68998.0,68987.0,0.00148]
[1773105541194,0.03,68999.0,68987.0,0.00148]
[1773105541401,0.03,68998.0,68988.0,0.06848947]
[1773105542042,0.03,68998.0,68987.0,0.00148]
[1773105542043,0.005,68997.0,68987.0,0.00148]
[1773105542258,0.005,68997.0,68981.0,0.06848947]
[1773105542459,0.005,68992.0,68972.0,0.17375156]
[1773105542606,0.03,68985.0,68971.0,0.0002]
[1773105542808,0.005,68982.0,68971.0,0.0002]
[1773105543047,0.03,68981.0,68971.0,0.0002]
[1773105543241,0.005,68980.0,68971.0,0.0002]
[1773105543662,0.005,68980.0,68971.0,0.07269416]
[1773105544085,0.035,68980.0,68971.0,0.07269416]
[1773105544496,0.00148,68985.0,68971.0,0.07269416]
[1773105544693,0.00148,68985.0,68972.0,0.0685958]
[1773105544955,0.00648,68985.0,68972.0,0.0685958]
[1773105545243,0.005,68984.0,68971.0,0.07269416]
[1773105545490,0.005,68984.0,68971.0,0.07254463]
[1773105545692,0.005,68984.0,68975.0,0.0002]
[1773105545994,0.005,68984.0,68975.0,5.048e-05]
[1773105546188,0.03,68986.0,68975.0,5.048e-05]
[1773105546398,0.03,68986.0,68976.0,0.00148]
[1773105546619,0.03,68984.0,68977.0,0.07248793]
[1773105547623,0.005,68983.0,68976.0,0.07396896]
[1773105548939,0.005,68983.0,68974.0,0.07249108]
[1773105549143,0.03,68981.0,68960.0,0.0685958]
[1773105549318,0.005,68980.0,68968.0,0.00168]
[1773105549521,0.00511456,68980.0,68968.0,0.00168]
[1773105549675,0.00511456,68980.0,68968.0,0.0002]
[1773105549676,0.03,68978.0,68968.0,0.0002]
[1773105549892,0.005,68977.0,68968.0,0.0002]
[1773105551934,0.03,68975.0,68968.0,0.07254786]
[1773105553757,0.005,68974.0,68968.0,5.047e-05]
[1773105554909,0.005,68972.0,68968.0,5.047e-05]
[1773105555192,0.07249153,68974.0,68955.0,0.07250895]
[1773105555193,0.005,68969.0,68961.0,0.0002]
[1773105555386,0.03,68968.0,68955.0,0.00148]
[1773105555586,0.005,68967.0,68955.0,0.00148]
[1773105557757,0.005,68964.0,68955.0,0.00148]
[1773105559729,0.03,68967.0,68956.0,0.07251]
[1773105560034,0.0739778,68968.0,68958.0,0.0685958]
[1773105560362,0.0048829,68973.0,68958.0,0.0685958]
[1773105560363,0.00148,68970.0,68958.0,0.0685958]
[1773105560759,0.0063629,68970.0,68957.0,0.00470293]
[1773105560978,0.0048829,68970.0,68956.0,0.07251]
[1773105562034,0.03,68969.0,68956.0,0.07251]
[1773105562193,0.0048829,68968.0,68956.0,0.07251]
[1773105562393,0.0048829,68968.0,68957.0,0.00148]
[1773105562600,0.03,68969.0,68957.0,0.00148]
[1773105562776,0.03,68969.0,68958.0,0.07210719]
[1773105563207,0.03,68969.0,68957.0,0.00148]
[1773105563401,0.0048829,68966.0,68957.0,0.00148]
[1773105563987,0.0048829,68966.0,68958.0,0.0725079]
[1773105567505,0.0348829,68966.0,68958.0,0.0725079]
[1773105568671,0.03,68965.0,68958.0,0.0725079]
[1773105569735,0.0048829,68966.0,68958.0,0.0725079]
[1773105570170,0.0048829,68966.0,68957.0,0.0739879]
[1773105570550,0.03,68964.0,68957.0,0.07383834]
[1773105573074,0.0048829,68966.0,68957.0,0.07383834]
[1773105573903,0.00022001,68967.0,68957.0,0.07383834]
[1773105574102,0.03022001,68967.0,68957.0,0.07383834]
[1773105575096,0.10271885,68967.0,68957.0,0.07383834]
[1773105576235,0.10760175,68967.0,68957.0,0.07383834]
[1773105576998,0.0048829,68966.0,68957.0,0.07383834]
[1773105577408,0.07249439,68971.0,68957.0,0.07383834]
[1773105577409,0.00011456,68980.0,68959.0,0.07362676]
[1773105577598,0.00148,68974.0,68962.0,0.00470293]
[1773105577764,0.00148,68974.0,68963.0,0.00148]
[1773105578613,0.00148,68974.0,68964.0,0.00148]
[1773105579164,0.03,68972.0,68964.0,0.00148]
[1773105579368,0.03,68972.0,68964.0,0.07368239]
[1773105579572,0.03,68972.0,68964.0,0.00118089]
[1773105579831,0.03,68972.0,68961.0,0.07250447]
[1773105580024,0.03,68972.0,68963.0,0.00148]
[1773105581221,0.03,68970.0,68964.0,0.07250159]
[1773105582809,0.03,68970.0,68963.0,0.00148]
[1773105583155,0.03,68970.0,68963.0,0.07398224]
[1773105583743,0.07249633,68969.0,68963.0,0.00148]
[1773105583924,0.03,68968.0,68963.0,0.00148]
[1773105584271,0.03,68968.0,68958.0,0.07721052]
[1773105584272,0.03481773,68968.0,68958.0,0.07250774]
[1773105584475,0.03481773,68968.0,68959.0,0.00148]
[1773105584829,0.03481773,68968.0,68958.0,0.07250774]
[1773105585029,0.03481773,68968.0,68959.0,0.00148]
[1773105585278,0.03481773,68968.0,68957.0,0.0002]
[1773105585437,0.00481773,68967.0,68957.0,0.07418888]
[1773105585823,0.03,68965.0,68957.0,0.07270888]
[1773105586022,0.03,68965.0,68957.0,0.07418888]
[1773105586830,0.03,68965.0,68957.0,0.07270888]
[1773105587035,0.03,68965.0,68957.0,0.07418888]
[1773105588480,0.10250105,68965.0,68957.0,0.07418888]
[1773105588801,0.10731878,68965.0,68957.0,0.0002]
[1773105589388,0.10731878,68965.0,68935.0,0.2896565]
[1773105589389,0.06989014,68962.0,68935.0,0.2896565]
[1773105589631,0.03,68949.0,68936.0,0.00148]
[1773105589849,0.0048359,68948.0,68936.0,0.00148]
[1773105590019,0.03,68946.0,68936.0,0.00148]
[1773105590228,0.03,68946.0,68936.0,0.07401061]
[1773105590668,0.03,68946.0,68936.0,0.07253061]
[1773105590882,0.0048359,68945.0,68935.0,0.0002499]
[1773105591824,0.0048359,68945.0,68931.0,0.00015]
[1773105591825,0.0048359,68942.0,68931.0,0.00015]
[1773105592039,0.03,68938.0,68931.0,0.00015]
[1773105592403,0.0048359,68937.0,68931.0,0.00015]
[1773105596524,0.07252768,68940.0,68931.0,0.00015]
[1773105596726,0.00148,68949.0,68933.0,0.00484469]
[1773105596927,0.00148,68950.0,68936.0,0.06753185]
[1773105597127,0.00148,68950.0,68936.0,0.07237654]
[1773105597527,0.03,68948.0,68937.0,0.07252999]
[1773105599124,0.03,68948.0,68938.0,0.00148]
[1773105599324,0.03,68948.0,68936.0,0.00148]
[1773105599521,0.03,68944.0,68933.0,0.00038215]
[1773105599735,0.0048359,68943.0,68933.0,0.00148]
[1773105600134,0.0048359,68943.0,68931.0,0.07268575]
[1773105600330,0.03,68942.0,68931.0,0.00015]
[1773105600575,0.0048359,68941.0,68931.0,0.00015]
[1773105601317,0.03,68940.0,68931.0,0.00015]
[1773105601463,0.03,68938.0,68928.0,0.0002]
[1773105601634,0.03,68935.0,68928.0,0.0002]
[1773105601833,0.0048359,68934.0,68928.0,0.0002]
[1773105602316,0.0048359,68934.0,68930.0,0.0002]
[1773105602492,0.0048359,68934.0,68916.0,0.07255135]
[1773105602689,0.07253104,68936.0,68920.0,1e-08]
[1773105602690,0.0048359,68928.0,68920.0,1e-08]
[1773105602896,0.0048359,68928.0,68909.0,0.074039]
[1773105603138,0.07253104,68936.0,68895.0,0.06753185]
[1773105603139,0.07088981,68918.0,68895.0,0.06753185]
[1773105603348,0.16844961,68920.0,68897.0,0.00148]
[1773105603349,0.0048359,68913.0,68897.0,0.00148]
[1773105603570,0.03,68909.0,68897.0,0.00148]
[1773105603778,0.0048359,68906.0,68896.0,0.0002951]
[1773105603994,0.07256051,68908.0,68886.0,0.00148]
[1773105603995,0.03,68901.0,68886.0,0.00148]
[1773105604193,0.03,68901.0,68882.0,0.06613551]
[1773105604194,0.03,68896.0,68882.0,0.000251]
[1773105604397,0.0048359,68894.0,68882.0,0.000251]
[1773105604758,0.03,68896.0,68882.0,0.07283829]
[1773105604958,0.0048359,68895.0,68882.0,0.07283829]
[1773105605967,0.0048359,68895.0,68882.0,0.000251]
[1773105605968,0.0048359,68894.0,68882.0,0.000251]
[1773105606399,0.0048359,68894.0,68882.0,0.07283829]
[1773105606589,0.03148,68895.0,68882.0,0.07768298]
[1773105606933,0.03,68894.0,68884.0,0.00484469]
[1773105607084,0.00038239,68901.0,68886.0,0.00484469]
[1773105607288,0.00038239,68901.0,68890.0,0.00484469]
[1773105607614,0.00148,68908.0,68892.0,0.00484469]
[1773105607826,0.07403946,68909.0,68894.0,0.14330388]
[1773105607964,0.03,68908.0,68895.0,0.06588451]
[1773105608167,0.03,68908.0,68895.0,0.0707292]
[1773105608367,0.03,68908.0,68897.0,0.06588451]
[1773105608566,0.07816851,68920.0,68900.0,0.00484469]
[1773105608771,0.07816851,68920.0,68892.0,0.07295912]
[1773105608772,0.0048359,68908.0,68892.0,0.07295912]
[1773105608993,0.0048359,68908.0,68894.0,0.00148]
[1773105609214,0.0063159,68911.0,68895.0,0.06588451]
[1773105609415,0.00464602,68910.0,68894.0,0.00148]
[1773105609849,0.00464602,68907.0,68895.0,0.00148]
[1773105610255,0.031,68908.0,68895.0,0.00148]
[1773105610411,0.03564602,68908.0,68895.0,0.00103139]
[1773105610615,0.03464602,68908.0,68895.0,0.00103139]
[1773105610813,0.00464602,68907.0,68895.0,0.00103139]
[1773105611737,0.00464602,68907.0,68895.0,0.0008819]
[1773105611935,0.03,68905.0,68895.0,0.00073242]
[1773105612340,0.03,68905.0,68895.0,0.07330635]
[1773105612840,0.03148,68908.0,68895.0,0.0782924]
[1773105613040,0.10404118,68908.0,68895.0,0.0782924]
[1773105613980,0.07255261,68916.0,68900.0,0.00498605]
[1773105614186,0.00148,68913.0,68900.0,0.00498605]
[1773105614964,0.00148,68913.0,68900.0,0.07087056]
[1773105615221,0.00148,68913.0,68900.0,0.00498605]
[1773105615414,0.00464602,68913.0,68900.0,0.00483653]
[1773105615646,0.00148,68914.0,68901.0,0.00148]
[1773105615853,0.03,68915.0,68901.0,0.00148]
[1773105615854,0.03,68915.0,68902.0,0.06588451]
[1773105616006,0.03,68918.0,68906.0,0.00498605]
[1773105616387,0.00464602,68917.0,68904.0,0.07256472]
[1773105617173,0.00464602,68917.0,68905.0,0.00148]
[1773105617775,0.07254893,68921.0,68905.0,0.00148]
[1773105617776,0.03,68924.0,68906.0,0.06588451]
[1773105617988,0.03,68924.0,68912.0,0.00498605]
[1773105618198,0.10254403,68924.0,68912.0,0.00148]
[1773105618400,0.03,68924.0,68912.0,0.00148]
[1773105619668,0.03,68924.0,68913.0,0.00498605]
[1773105620887,0.03,68924.0,68914.0,0.07255419]
[1773105621291,0.10254405,68924.0,68914.0,0.07255419]
[1773105621753,0.03,68923.0,68914.0,0.07255419]
[1773105622571,0.03,68923.0,68914.0,0.07240469]
[1773105622783,0.03023,68925.0,68914.0,0.07240469]
[1773105622975,0.03023,68925.0,68914.0,0.0722552]
[1773105623345,0.10277261,68925.0,68914.0,0.0722552]
[1773105623545,0.03023,68925.0,68915.0,0.00498605]
[1773105623743,0.03,68924.0,68915.0,0.00498605]
[1773105623949,0.07253884,68929.0,68914.0,0.13813971]
[1773105623950,0.000251,68931.0,68916.0,0.06588451]
[1773105624189,0.000251,68931.0,68919.0,0.00498605]
[1773105624367,0.000251,68931.0,68922.0,0.00498605]
[1773105624563,0.07278766,68931.0,68914.0,0.0722552]
[1773105624788,0.03,68929.0,68914.0,0.0722552]
[1773105624972,0.00464602,68924.0,68913.0,0.00011447]
[1773105626069,0.00464602,68924.0,68912.0,0.00148]
[1773105626275,0.0047607,68924.0,68912.0,0.00148]
[1773105627134,0.03,68923.0,68913.0,0.07255525]
[1773105628144,0.00148,68928.0,68913.0,0.07255525]
[1773105628355,0.07264527,68927.0,68913.0,0.07266993]
[1773105628700,0.00464602,68926.0,68913.0,0.07266993]
[1773105629249,0.03,68924.0,68913.0,0.07266993]
[1773105629456,0.03,68924.0,68913.0,0.07414993]
[1773105629699,0.03,68924.0,68913.0,0.07400044]
[1773105629886,0.03,68924.0,68913.0,0.07252044]
[1773105630119,0.00464602,68923.0,68913.0,0.07400044]
[1773105630264,0.03,68923.0,68913.0,0.00159468]
[1773105630487,0.03464602,68923.0,68913.0,0.00159468]
[1773105630661,0.00274602,68923.0,68913.0,0.00159468]
[1773105631265,0.03,68921.0,68913.0,0.07414928]
[1773105631489,0.03,68921.0,68914.0,0.00498605]
[1773105632415,0.03,68922.0,68914.0,0.00498605]
[1773105632793,0.07253848,68929.0,68915.0,0.06588451]
[1773105632976,0.07401992,68928.0,68916.0,0.00498605]
[1773105633174,0.07401992,68928.0,68917.0,0.07255103]
[1773105633397,0.03,68927.0,68917.0,0.07255103]
[1773105633660,0.03464602,68927.0,68916.0,0.07255103]
[1773105633867,0.03,68927.0,68916.0,0.07255103]
[1773105634417,0.03,68927.0,68913.0,0.00159468]
[1773105634418,0.03,68927.0,68913.0,0.07414891]
[1773105634604,0.03464602,68927.0,68913.0,0.07414891]
[1773105635262,0.03,68925.0,68913.0,0.07414891]
[1773105636206,0.03,68925.0,68913.0,0.07913496]
[1773105636757,0.03,68925.0,68914.0,0.00498605]
[1773105637310,0.03,68923.0,68915.0,0.07255314]
[1773105637712,0.00014948,68922.0,68915.0,0.07255314]
[1773105639041,0.00014948,68922.0,68908.0,0.07255974]
[1773105639256,0.00491025,68922.0,68909.0,0.00148]
[1773105639449,0.00491025,68922.0,68905.0,0.07276326]
[1773105639450,0.00453825,68919.0,68905.0,0.07276326]
[1773105639678,0.00453825,68916.0,68905.0,0.0002]
[1773105639851,0.00453825,68916.0,68906.0,0.00148]
[1773105640076,0.03,68917.0,68907.0,0.00450113]
[1773105640294,0.03,68917.0,68907.0,0.00435167]
[1773105640697,0.03,68916.0,68906.0,0.07389315]
[1773105641526,0.03,68914.0,68906.0,0.07389315]
[1773105642165,0.00148,68920.0,68907.0,0.07089147]
[1773105642371,0.07402841,68920.0,68908.0,0.00450113]
[1773105642663,0.00014948,68913.0,68907.0,0.00450113]
[1773105642861,0.00014948,68913.0,68906.0,0.07389315]
[1773105644523,0.00014948,68913.0,68907.0,0.00148]
[1773105645754,0.00014948,68913.0,68908.0,0.07256051]
[1773105645982,0.00468773,68913.0,68908.0,0.07256051]
[1773105646231,0.00014948,68913.0,68908.0,0.07256051]
[1773105646508,0.00468773,68913.0,68902.0,0.07256594]
[1773105646686,0.00453825,68910.0,68902.0,0.07256594]
[1773105646884,0.03,68908.0,68897.0,0.07257162]
[1773105647205,0.00495999,68907.0,68898.0,0.07277011]
[1773105647811,0.03,68905.0,68898.0,0.07277011]
[1773105648763,0.03,68905.0,68898.0,0.0002]
[1773105648965,0.03,68904.0,68898.0,0.0002]
[1773105649093,0.00014948,68906.0,68898.0,0.0002]
[1773105649961,0.03014948,68906.0,68898.0,0.0002]
[1773105650964,0.03,68904.0,68898.0,0.0002]
[1773105651380,0.07256367,68905.0,68904.0,0.00017941]
[1773105651520,0.07256367,68905.0,68896.0,0.06925283]
[1773105652090,0.00014948,68906.0,68896.0,0.06925283]
[1773105652426,0.00014948,68906.0,68896.0,0.07425142]
[1773105654276,0.00014948,68906.0,68897.0,0.00499859]
[1773105654776,0.00014948,68906.0,68898.0,0.0002]
[1773105654997,0.03,68907.0,68898.0,0.0002]
[1773105655595,0.03,68906.0,68898.0,0.0002]
[1773105655800,0.07255508,68914.0,68898.0,0.0002]
[1773105656001,0.00022001,68937.0,68898.0,0.0002]
[1773105656002,0.14353217,68919.0,68901.0,0.06926582]
[1773105656206,0.07403103,68921.0,68905.0,0.07256367]
[1773105656207,0.07255103,68921.0,68905.0,0.07256367]
[1773105656432,0.07255103,68921.0,68906.0,0.00499859]
[1773105656571,0.03,68920.0,68906.0,0.00499859]
[1773105656976,0.07266154,68922.0,68909.0,0.06926582]
[1773105657176,0.07266154,68922.0,68912.0,0.00499859]
[1773105657770,0.03,68921.0,68912.0,0.00499859]
[1773105657978,0.03,68921.0,68910.0,0.00148]
[1773105658633,0.07394061,68920.0,68907.0,0.07256142]
[1773105658875,0.03495999,68919.0,68908.0,0.00148]
[1773105659075,0.0047805,68919.0,68908.0,0.00148]
[1773105659646,0.07254748,68921.0,68909.0,0.00499859]
[1773105659961,0.03,68920.0,68908.0,0.00647859]
[1773105660366,0.03,68920.0,68908.0,0.00148]
[1773105660958,0.00023,68925.0,68909.0,0.07255946]
[1773105661138,0.00148,68928.0,68913.0,0.06926582]
[1773105661340,0.00148,68928.0,68916.0,0.00499859]
[1773105661635,0.00643999,68928.0,68909.0,0.07267421]
[1773105661839,0.00643999,68928.0,68911.0,0.00499859]
[1773105661840,0.00495999,68927.0,68911.0,0.00499859]
[1773105662173,0.03148,68928.0,68913.0,0.00499859]
[1773105662373,0.03148,68928.0,68914.0,0.07426441]
[1773105662604,0.03148,68928.0,68915.0,0.00499859]
[1773105662788,0.03148,68928.0,68916.0,0.00148]
[1773105663088,0.03148,68928.0,68916.0,0.00647859]
[1773105663292,0.10401998,68928.0,68917.0,0.07255103]
[1773105663951,0.10423999,68928.0,68917.0,0.07255103]
[1773105664352,0.03,68927.0,68919.0,0.00499859]
[1773105664892,0.03,68927.0,68917.0,0.07255103]
[1773105664893,0.00022001,68942.0,68920.0,0.00499859]
[1773105665144,0.00014,68943.0,68924.0,0.00499859]
[1773105665435,0.00014,68943.0,68929.0,0.00499859]
[1773105665595,0.00014,68943.0,68931.0,0.06957044]
[1773105665797,0.00014,68943.0,68932.0,0.00647859]
[1773105666673,0.00025479,68943.0,68932.0,0.00647859]
[1773105666873,0.00025479,68943.0,68933.0,0.00499859]
[1773105667113,0.00025479,68943.0,68934.0,0.00148]
[1773105667520,0.00025479,68943.0,68935.0,0.07253209]
[1773105667924,0.03025479,68943.0,68935.0,0.07253209]
[1773105668490,0.03025479,68943.0,68936.0,0.00499859]
[1773105668701,0.00562,68948.0,68936.0,0.06957044]
[1773105668884,0.00568102,68948.0,68937.0,0.00499859]
[1773105669089,0.03568102,68948.0,68937.0,0.00499859]
[1773105669535,0.03568102,68948.0,68921.0,0.00148]
[1773105669536,0.00469282,68938.0,68921.0,0.00148]
[1773105669705,0.00469282,68935.0,68922.0,0.00148]
[1773105669906,0.00469282,68933.0,68922.0,0.00148]
[1773105670356,0.00469282,68933.0,68917.0,0.00453081]
[1773105670555,0.00469282,68933.0,68922.0,0.00148]
[1773105671422,0.03,68931.0,68922.0,0.00148]
[1773105671839,0.03,68931.0,68922.0,0.07402542]
[1773105672231,0.03,68931.0,68922.0,0.00148]
[1773105673556,0.07253735,68930.0,68922.0,0.00148]
[1773105673906,0.10253735,68930.0,68922.0,0.00148]
[1773105674876,0.00469282,68929.0,68913.0,0.07255421]
[1773105675081,0.00469282,68929.0,68913.0,0.07708502]
[1773105675281,0.10253735,68930.0,68902.0,0.00453081]
[1773105675282,0.16854167,68923.0,68902.0,0.00453081]
[1773105675494,0.16854167,68923.0,68900.0,0.00023]
[1773105675495,0.03,68917.0,68903.0,0.00148]
[1773105675684,0.03,68912.0,68903.0,0.00148]
[1773105676480,0.03006651,68912.0,68903.0,0.00148]
[1773105676733,0.03006651,68912.0,68904.0,0.00148]
[1773105677794,0.03,68910.0,68904.0,0.00148]
[1773105678357,0.03,68910.0,68902.0,0.07256656]
[1773105678556,0.03,68910.0,68903.0,0.00148]
[1773105679413,0.04255735,68912.0,68903.0,0.00148]
[1773105679622,0.07255472,68914.0,68903.0,0.00601081]
[1773105679757,0.00148,68923.0,68907.0,0.06957044]
[1773105679960,0.00469282,68931.0,68905.0,0.07256367]
[1773105679961,0.00469282,68931.0,68911.0,0.06957044]
[1773105680181,0.00469282,68931.0,68905.0,0.07256367]
[1773105680182,0.00148,68931.0,68915.0,0.00453081]
[1773105680383,0.00148,68931.0,68918.0,0.06957044]
[1773105680384,0.03,68931.0,68918.0,0.06957044]
[1773105680552,0.03,68931.0,68921.0,0.00453081]
[1773105681050,0.03,68931.0,68921.0,0.06957044]
[1773105681256,0.03,68931.0,68922.0,0.00453081]
[1773105681509,0.03,68930.0,68922.0,0.00453081]
[1773105681903,0.03,68930.0,68924.0,0.00453081]
[1773105682082,0.1025375,68930.0,68924.0,0.00453081]
[1773105682667,0.1025375,68930.0,68924.0,0.00438129]
[1773105682868,0.03,68929.0,68924.0,0.00438129]
[1773105683190,0.03,68929.0,68924.0,0.00449608]
[1773105683589,0.07275434,68933.0,68924.0,0.00449608]
[1773105683798,0.00022001,68933.0,68925.0,0.07254261]
[1773105684126,0.00022001,68933.0,68926.0,0.00453081]
[1773105684505,0.03,68932.0,68926.0,0.00453081]
[1773105684703,0.03,68932.0,68926.0,0.00423174]
[1773105685437,0.03,68932.0,68925.0,0.07402261]
[1773105687107,0.00022001,68937.0,68927.0,0.00453081]
[1773105687300,0.00022001,68937.0,68928.0,0.00453081]
[1773105687697,0.07253104,68936.0,68928.0,0.00453081]
[1773105687937,0.07722386,68936.0,68929.0,0.00148]
[1773105688138,0.07252893,68938.0,68929.0,0.00148]
[1773105688342,0.00022001,68940.0,68931.0,0.06957044]
[1773105688514,0.00022001,68940.0,68932.0,0.00438129]
[1773105689320,0.03,68941.0,68933.0,0.06957044]
[1773105689533,0.03,68941.0,68934.0,0.00453081]
[1773105689966,0.00022001,68944.0,68936.0,0.00453081]
[1773105690265,0.00022001,68944.0,68935.0,0.00148]
[1773105690266,0.00022001,68947.0,68939.0,0.07252788]
[1773105690470,0.00022001,68947.0,68940.0,0.00453081]
[1773105690681,0.00022001,68947.0,68940.0,0.00438131]
[1773105691237,0.00034451,68947.0,68940.0,0.00438131]
[1773105691843,0.00034451,68947.0,68940.0,0.00423178]
[1773105692212,0.00562,68948.0,68940.0,0.00423178]
[1773105692396,0.07720223,68957.0,68940.0,0.00423178]
[1773105692397,0.0728065,68959.0,68944.0,0.06957044]
[1773105692598,0.0728065,68959.0,68945.0,0.00453081]
[1773105693469,0.03,68958.0,68945.0,0.00453081]
[1773105693716,0.03,68958.0,68946.0,0.00453081]
[1773105693925,0.03,68958.0,68948.0,0.00453081]
[1773105694163,0.07272085,68965.0,68949.0,0.07093239]
[1773105694373,0.07283663,68964.0,68953.0,0.00453081]
[1773105694590,0.03,68963.0,68953.0,0.00453081]
[1773105694804,0.03,68963.0,68954.0,0.00453081]
[1773105695580,0.03,68962.0,68954.0,0.00453081]
[1773105696436,0.03,68961.0,68955.0,0.07251105]
[1773105697738,0.10283645,68964.0,68955.0,0.07251105]
[1773105698149,0.00022001,68961.0,68955.0,0.07251105]
[1773105699345,0.07271416,68972.0,68958.0,0.0049107]
[1773105699563,0.07271416,68972.0,68955.0,0.07221208]
[1773105699564,0.03,68967.0,68955.0,0.07221208]
[1773105699781,0.0048649,68966.0,68955.0,0.07232692]
[1773105699987,0.0048649,68966.0,68956.0,0.00148]
[1773105700631,0.0048649,68966.0,68955.0,0.00011484]
[1773105700864,0.03,68967.0,68956.0,0.00148]
[1773105701114,0.03,68967.0,68957.0,0.0049107]
[1773105701327,0.10249885,68967.0,68957.0,0.0049107]
[1773105702460,0.10249885,68967.0,68956.0,0.00148]
[1773105702668,0.0048649,68960.0,68949.0,0.00148]
[1773105702810,0.03,68958.0,68950.0,0.07251631]
[1773105703870,0.03,68959.0,68950.0,0.07251631]
[1773105705174,0.03,68959.0,68951.0,0.0049107]
[1773105705383,0.03,68958.0,68951.0,0.0049107]
[1773105705606,0.07250351,68963.0,68951.0,0.0049107]
[1773105706431,0.07271742,68968.0,68951.0,0.0049107]
[1773105706536,0.00148,68967.0,68953.0,0.0049107]
[1773105706738,0.00022001,68966.0,68953.0,0.0049107]
[1773105707190,0.07250054,68965.0,68954.0,0.0725121]
[1773105707396,0.03,68964.0,68955.0,0.00148]
[1773105709244,0.03,68964.0,68956.0,0.07251]
[1773105709408,0.03,68964.0,68956.0,0.07236053]
[1773105710598,0.10250221,68964.0,68953.0,0.07251112]
[1773105710807,0.10250221,68964.0,68945.0,0.07420052]
[1773105710808,0.0048649,68957.0,68945.0,0.07420052]
[1773105711107,0.03,68956.0,68945.0,0.07420052]
[1773105711522,0.03,68956.0,68946.0,0.0049107]
[1773105711926,0.10251028,68956.0,68946.0,0.0049107]
[1773105713134,0.10251028,68956.0,68946.0,0.0047612]
[1773105713303,0.03,68955.0,68946.0,0.0047612]
[1773105713813,0.03,68955.0,68947.0,0.07251947]
[1773105714220,0.03,68956.0,68947.0,0.07251947]
[1773105714607,0.10251014,68956.0,68947.0,0.07251947]
[1773105714818,0.03,68956.0,68947.0,0.07251947]
[1773105715023,0.00148,68959.0,68947.0,0.07251947]
[1773105715256,0.03148,68959.0,68948.0,0.00474412]
[1773105715432,0.10398704,68959.0,68948.0,0.00474412]
[1773105715664,0.00022001,68964.0,68949.0,0.00474412]
[1773105715865,0.00022001,68966.0,68954.0,0.00474412]
[1773105716093,0.00022001,68966.0,68957.0,0.00474412]
[1773105717317,0.03,68969.0,68957.0,0.00474412]
[1773105717510,0.03,68969.0,68959.0,0.00474412]
[1773105717970,0.03,68969.0,68960.0,0.07724992]
[1773105718241,0.03,68969.0,68961.0,0.00148]
[1773105718445,0.03,68970.0,68961.0,0.00133054]
[1773105718866,0.03,68970.0,68961.0,0.00607466]
[1773105720068,0.00148,68974.0,68961.0,0.00607466]
[1773105720069,0.00074951,68975.0,68962.0,0.07724781]
[1773105720265,0.00074951,68975.0,68963.0,0.11565557]
[1773105720468,0.07324036,68975.0,68963.0,0.00474412]
[1773105720644,0.07324036,68975.0,68959.0,0.18816213]
[1773105720645,0.00486726,68972.0,68959.0,0.18816213]
[1773105720844,0.07897075,68970.0,68960.0,0.00148]
[1773105721115,0.00486726,68969.0,68960.0,0.00148]
[1773105721279,0.00486726,68966.0,68958.0,0.07250737]
[1773105722069,0.03,68967.0,68958.0,0.07250737]
[1773105722472,0.03,68966.0,68959.0,0.00474412]
[1773105722957,0.0724933,68972.0,68961.0,0.00474412]
[1773105723160,0.0724933,68972.0,68963.0,0.00474412]
[1773105723606,0.03,68971.0,68963.0,0.00474412]
[1773105723761,0.00022001,68970.0,68963.0,0.00474412]
[1773105724167,0.0724933,68972.0,68963.0,0.00474412]
[1773105724369,0.07249258,68973.0,68963.0,0.07724579]
[1773105724594,0.03,68972.0,68963.0,0.07724579]
[1773105727354,0.03,68970.0,68963.0,0.07709633]
[1773105728155,0.03,68970.0,68963.0,0.07250167]
[1773105730124,0.10249603,68970.0,68963.0,0.07250167]
[1773105730456,0.10729511,68970.0,68962.0,0.00148]
[1773105730686,0.00479908,68969.0,68962.0,0.00148]
[1773105730875,0.00479908,68969.0,68962.0,0.07398333]
[1773105731633,0.10249603,68970.0,68962.0,0.07398333]
[1773105732239,0.03,68968.0,68962.0,0.07398333]
[1773105735082,0.03,68967.0,68962.0,0.07398333]
[1773105735279,0.03,68967.0,68962.0,0.00148]
[1773105735701,0.03,68967.0,68962.0,0.0739836]
[1773105736182,0.03,68968.0,68962.0,0.0739836]
[1773105738773,0.03,68967.0,68962.0,0.0739836]
[1773105739561,0.00022001,68969.0,68962.0,0.0739836]